Workbook

Sheet Balance General
B1: TROPERD DE TOLUCA SA DE CV
B2: BALANCE GENERAL
B3: EJERCICIO AL 31 DE DICIEMBRE DE 2010
B4: (Cifras en Pesos)
A6: DESCRIPCION | B6: SALDO FINAL | C6: DESCRIPCION | D6: SALDO FINAL
B7: DEL MES | D7: DEL MES
A9: ACTIVOS DISPONIBLES | C9: PASIVOS A CORTO PLAZO
A10: BANCOS | B10: 53,572 | C10: PROVEEDORES | D10: 468,043
C11: PTU POR PAGAR | D11: 290,775
A12: TOTAL DE ACTIVOS DISPONIBLES : | B12: =B10 -> 53,572 | C12: ACREEDORES DIVERSOS | D12: 2,482,221
C13: IMPUESTOS POR PAGAR | D13: 629,306
A14: ACTIVOS CIRCULANTES | C14: I.V.A. PENDIENTE DE PAGO | D14: 15,521
A15: CLIENTES | B15: 316,250 | C15: ANTICIPO DE CLIENTES | D15: 30,973
A16: DEUDORES DIVERSOS | B16: 544,799 | C16: CUENTAS POR PAGAR | D16: 250,000
A17: CUENTAS POR COBRAR | B17: 49,983 | C17: TOTAL DE PASIVOS A CORTO PLAZO: | D17: =SUM(D10:D16) -> 4,166,839
A18: AFORO POR FACTORAJE | B18: 107,918
A19: TOTAL DE ACTIVOS CIRCULANTES : | B19: =SUM(B15:B18) -> 1,018,950
A21: OTROS ACTIVOS CIRCULANTES
A22: SEGUROS PAGADOS POR ANTICIPADO | B22: 121,895
A23: INTERESES PAGADOS POR ANTICIPADO | B23: 22,377
A25: TOTAL DE OTROS ACTIVOS | B25: =B22+B23 -> 144,272
A27: ACTIVOS NO CIRCULANTES
A28: EQUIPO DE OFICINA USADO | B28: 10,000
A29: MOBILIARIO NUEVO | B29: 5,000
A30: COPIADORA NUEVA | B30: 10,000
A31: (Depreciación Acumulada) | B31: -3,958 | C31: CAPITAL CONTABLE
A32: MAQUINARIA NUEVA | B32: 2,000,000 | C32: CAPITAL CONTRIBUIDO
A33: MAQUINARIA USADA | B33: 750,000 | C33: Capital Social | D33: 500,000
A34: TROQUELADORA | B34: 580,000 | C34: Aportaciones para Futuros Aumentos de Capital | D34: 50,000
A35: MAQUINARIA USADA | B35: 150,000 | C35: CAPITAL GANADO
A36: (Depreciación Acumulada) | B36: -589,583 | C36: RESULTADO DEL EJERCICIO: | D36: 1,451,978
A37: AUTO USADO | B37: 50,000 | C37: Resultado Ejercicios Anteriores | D37: =98356.58+26.01 -> 98,383
A38: AUTO NUEVO | B38: 120,000 | C38: Reserva Legal | D38: 4,500
A39: (Depreciación Acumulada) | B39: -55,833 | C39: Pérdidas de Ejercicios Anteriores | D39: =-125800-48356.36 -> -174,156
A40: TRAILER NUEVO | B40: 2,500,000 | C40: TOTAL DEL CAPITAL: | D40: =SUM(D33:D39) -> 1,930,705
A41: (Depreciación Acumulada) | B41: -781,250
A42: EQUIPO DE COMPUTO NUEVO | B42: 30,000 | C42: Nota: Para efectos de Presentación, primero se muestra el
A43: EQUIPO DE COMPUTO | B43: 135,000 | C43: CAPITAL CONTRIBUIDO y en Segundo plano el CAPITAL
A44: COMPUTO NUEVO | B44: 13,000 | C44: GANADO, párrafo 22 del Boletín C-11
A45: (Depreciación Acumulada) | B45: -41,625
A46: TOTAL DE ACTIVOS FIJOS : | B46: =SUM(B28:B45) -> 4,880,750
A49: TOTAL DEL ACTIVO: | B49: =B12+B19+B25+B46 -> 6,097,544 | C49: TOTAL DEL PASIVO Y CAPITAL: | D49: =D17+D40 -> 6,097,544 | E49: =B49-D49 -> 0
A52: Firma del Contador | C52: Firma del Administrador
A55: Notas al Balance General
A57: 1) El presente Estado Financierose hace con apego a las Normas de Información Financiera.
A58: 2) El Capital Social Mínimo es de $ 500,000.00
A59: 3) El Capital esta representado por Acciones Ordinarias con un valor nominal de $ 1,000.00 por acción
A60: 4) Capital Social Máximo Ilimitado
A61: 5) No de Acciones Suscritas y Exhibidas 500

Sheet Cufin
A2: Determinación de la CUFIN
A4: Resultado Fiscal 2003 | D4: 379,800
A5: Menos:
A6: ISR | D6: =D4*0.34 -> 129,132
A7: No Deducibles | D7: 12,000
A8: Ufin Ejercicio 2003 | D8: =D4-D6-D7 -> 238,668
A10: F.A INPC Mayo 04 | C10: 74.8640 | D10: =TRUNC(C10/C11,4) -> 1.0146
A11: INPC DIC03 | C11: 73.7840
A13: Cufin Actualizada a Mayo. De 2004 | D13: =D8*D10 -> 242,153 | E13: 2004-05-31
A14: Menos:
A15: Decreto de Dividendos | D15: 60,000 | E15: No se Paga ISR
A16: Sdo. Cufin 31/05/04 | D16: =D13-D15 -> 182,153 | E16: 2004-05-31
A18: F.A INPC Dic.04 | C18: 77.6140 | D18: =TRUNC(C18/C19,4) -> 1.0367
A19: INPC May.04 | C19: =C10 -> 74.8640
A21: Cufin Actualizada a Dic. De 2004 | D21: =D16*D18 -> 188,838 | E21: 2004-12-31
A22: menos:
A23: Ufin del ejercicio 2004 | D23: -125,000
A24: Sdo. Cufin 31/12/04 | D24: =D21+D23 -> 63,837.55 | E24: 2004-12-31
A26: F.A INPC Dic.05 | C26: 80.2000 | D26: =TRUNC(C26/C27,4) -> 1.0333
A27: INPC Dic.04 | C27: =C18 -> 77.6140
A29: Cufin Actualizada a Dic. De 2005 | D29: =D24*D26 -> 65,963 | E29: 2005-12-31
A30: Mas:
A31: Ufin del ejercicio 2005 | D31: 120,000 | E31: =D31+D29 -> 185,963
A32: Dividendos Percibidos de México | D32: 100,000 | E32: Percibidos en diciembre de 05
A33: Sdo. Cufin Actualizada a Dic. De 2005 | D33: =SUM(D29:D32) -> 285,963
A35: F.A INPC Dic.06 | C35: 83.4510 | D35: =TRUNC(C35/C36,4) -> 1.0405
A36: INPC Dic.05 | C36: =C26 -> 80.2000
A38: Cufin Actualizada a Dic. De 2006 | D38: =D33*D35 -> 297,545 | E38: 2006-12-31
A40: Más Ufin de 2006 | D40: 186,000
A42: Saldo de la Cufin al 31/12/06 | D42: =D38+D40 -> 483,545 | E42: 2006-12-31
A44: F.A INPC Dic.07 | C44: 86.5880 | D44: =TRUNC(C44/C45,4) -> 1.0375
A45: INPC Dic.06 | C45: =C35 -> 83.4510
A47: Cufin Actualizada a Dic. De 2007 | D47: =D42*D44 -> 501,678 | E47: 2007-12-31
A49: Ufin de 2007 | D49: -59,000
A51: Saldo Cufin a Dic. De 2007 | D51: =D47+D49 -> 442,678
A53: Decreto de Dividendos en Julio de 2008 | G53: Hoja 2/2
A55: F.A INPC Jul.08 | C55: 88.8420 | D55: =TRUNC(C55/C56,4) -> 1.0260
A56: INPC Dic07 | C56: =C44 -> 86.5880
A58: Cufin Actualizada a Jul. De 2008 | D58: =D42*D55 -> 496,117 | E58: 2007-07-31
A60: Dividendos Decretados en Julio 08 | D60: 350,000
A62: Saldo de la Cufin a Julio de 2008 | D62: =D58-D60 -> 146,117
A64: F.A INPC Dic.08 | C64: 92.2410 | D64: =TRUNC(C64/C65,4) -> 1.0382
A65: INPC Jul.08 | C65: 88.8420
A67: Saldo de la Cufin a Dic.08 de 2008 | D67: =D62*D64 -> 151,699
A69: Ufin Ejercicio 2008 | D69: 750,000
A71: Saldo de la Cufin a Dic.08 | D71: =D67+D69 -> 901,699
A73: F.A INPC Dic09 | C73: 95.5370 | D73: =TRUNC(C73/C74,4) -> 1.0357
A74: INPC Dic08 | C74: =+C64 -> 92.2410
A76: Saldo de la Cufin a Dic.09 | D76: =D71*D73 -> 933,889
A78: F.A INPC Jul.10 | C78: 97.0780 | D78: =TRUNC(C78/C79,4) -> 1.0161
A79: INPC Dic09 | C79: =C73 -> 95.5370
A81: Saldo de la Cufin a Jul 2010 | D81: =D76*D78 -> 948,925 | E81: Se Agota el Saldo de CUFIN
A82: Menos:
A83: Decreto de Dividendos Jul.10 | D83: 1,500,000
A84: Igual:
A85: Dividendos que no Provienen de Cufin | D85: =D83-D81 -> 551,075
A86: Por.
A87: Factor de Piramidación | D87: 1.4286
A88: Base de Dividendos | D88: =D85*D87 -> 787,266
A89: Por Tasa de ISR | D89: 30%
A90: ISR a cargo de la PM | D90: =D88*D89 -> 236,180
A92: Este ISR lo puede acreditar la PM en el ejercicio 2010
A94: ufin del ejercicio 2010 | D94: 895,000
A95: Menos:
A96: ISR entre .4286 | D96: =D90/0.4286 -> 551,049
A97: Saldo de la Ufin al 31 de dic. de 2010 | D97: =D94-D96 -> 343,951

Sheet Cuca
A1: Determinación de la Cuenta de Capital de Aportación (Cuca)
A3: Aportación Inicial | D3: 500,000 | E3: 2003-03-20
A5: F.A INPC DIC03 | C5: 73.784 | D5: =TRUNC(C5/C6,4) -> 1.0262
A6: INPC MAR03 | C6: 71.898
A8: Cuca Actualizada a Dic. De 2003. | D8: =D3*D5 -> 513,100 | E8: 2003-12-31
A9: Más:
A10: Aportación de Capital en Diciembre de 03 | D10: 100,000
A12: Saldo de Cuca | D12: =D8+D10 -> 613,100 | E12: 2003-12-31
A14: F.A INPC DIC04 | C14: 77.6140 | D14: =TRUNC(C14/C15,4) -> 1.0519
A15: INPC DIC03 | C15: 73.7840
A17: Cuca Actualizada a Dic. De 2004. | D17: =D12*D14 -> 644,920 | E17: 2004-12-31
A19: F.A INPC DIC05 | C19: 80.2000 | D19: =TRUNC(C19/C20,4) -> 1.0333
A20: INPC DIC04 | C20: =C14 -> 77.6140
A22: Cuca Actualizada a Dic. De 2005. | D22: =D17*D19 -> 666,396 | E22: 2005-12-31
A24: F.A INPC DIC06 | C24: 83.4510 | D24: =TRUNC(C24/C25,4) -> 1.0405
A25: INPC DIC05 | C25: =C19 -> 80.2000
A27: Cuca Actualizada a Dic. De 2006. | D27: =D22*D24 -> 693,385 | E27: 2006-12-31
A29: Reembolso de Acciones en Mayo de 2007
A31: F.A INPC May07 | C31: 83.8370 | D31: =TRUNC(C31/C32,4) -> 1.0046
A32: INPC DIC06 | C32: =C24 -> 83.4510
A34: Cuca Actualizada a Mayo De 2007. | D34: =D27*D31 -> 696,574 | E34: 2007-05-31
A35: Menos.
A36: Reembolso de Acciones | D36: 50,000 | E36: Se Disminuye el No de Acciones Reembolsadas
A38: Saldo de Cuca al 31/05/07 | D38: =D34-D36 -> 646,574
A40: F.A INPC Dic07 | C40: 86.5880 | D40: =TRUNC(C40/C41,4) -> 1.0328
A41: INPC May07 | C41: =C31 -> 83.8370
A43: Cuca Actualizada a Diciembre De 2007. | D43: =D38*D40 -> 667,782 | E43: 2007-12-31
A45: F.A INPC Dic08 | C45: 92.2410 | D45: =TRUNC(C45/C46,4) -> 1.0652
A46: INPC Dic.07 | C46: =C40 -> 86.5880
A48: Cuca Actualizada a Diciembre De 2008. | D48: =D43*D45 -> 711,321 | E48: 2008-12-31
A50: F.A INPC Dic09 | C50: 95.5370 | D50: =TRUNC(C50/C51,4) -> 1.0357
A51: INPC Dic.08 | C51: =C45 -> 92.2410
A53: Cuca Actualizada a Diciembre De 2009 | D53: =D48*D50 -> 736,716 | E53: 2009-12-31

Sheet UFIRE
A2: DETERMINACIÓN DE LA UFIRE 1999 | E2: DETERMINACIÓN DE LA UFIRE 2000 y 2001
A4: Resultado Fiscal | C4: 1,259,600 | E4: Resultado Fiscal | G4: 1,259,600
A5: Más: | E5: Más:
A6: PTU Deducible | C6: 128,900 | E6: PTU Deducible | G6: 128,900
A7: Subtotal | C7: =C4+C6 -> 1,388,500 | E7: Subtotal | G7: =G4+G6 -> 1,388,500
A8: Menos: | E8: Menos:
A9: Utilidad del Extranjero | C9: 549,600 | E9: Utilidad del Extranjero | G9: 549,600
A10: PTU Total | C10: 259,700 | E10: PTU Total | G10: 259,700
A11: Gastos No Deducibles | C11: 105,000 | E11: Gastos No Deducibles | G11: 105,000
A12: UFIRE | C12: =C7-SUM(C9:C11) -> 474,200 | E12: UFIRE | G12: =G7-SUM(G9:G11) -> 474,200
A13: por: | E13: por:
A14: Tasa de ISR a Diferir | C14: 3% | E14: Tasa de ISR a Diferir | G14: 5%
A15: ISR a Diferir | C15: =C12*C14 -> 14,226 | E15: ISR a Diferir | G15: =G12*G14 -> 23,710
A18: DETERMINACIÓN DE LA UFINRE 1999 | E18: DETERMINACIÓN DE LA UFINRE 2000 y 2001
A20: UFIRE | C20: =C12 -> 474,200 | E20: UFIRE | G20: =G12 -> 474,200
A21: Menos: | E21: Menos:
A22: ISR al 32% | C22: =C20*0.32 -> 151,744 | E22: ISR al 30% | G22: =G20*0.3 -> 142,260
A23: Subtotal | C23: =C20-C22 -> 322,456 | E23: Subtotal | G23: =G20-G22 -> 331,940
A24: Por: | E24: Por:
A25: Factor | C25: 0.9559 | E25: Factor | G25: 0.9286
A26: Ufirnre del Ejercicio | C26: =C23*C25 -> 308,236 | E26: Ufirnre del Ejercicio | G26: =G23*G25 -> 308,239
A27: Por: | E27: Por:
A28: Factor de Piramidación | C28: 1.5385 | E28: Factor de Piramidación | G28: 1.5385
A29: Base de ISR | C29: =C26*C28 -> 474,221 | E29: Base de ISR | G29: =G26*G28 -> 474,226
A30: Por: | E30: Por:
A31: Tasa de ISR | C31: 3% | E31: Tasa de ISR | G31: 5%
A32: ISR a Pagar | C32: =C29*C31 -> 14,227 | E32: ISR a Pagar | G32: =G29*G31 -> 23,711

Sheet Dividendos de Cufinre
A1: Caso Práctico Distribución de Dividendos
A3: Datos:
A5: Decreto de Dividendos | C5: 200,000
A6: Fecha de Decreto | C6: 2003-04-30
A8: Ufin de 1999 | C8: 40,750 | D8: Histórico
A9: Ufinre de 1999 | C9: 87,427 | D9: Histórico
A12: Actualización de la Ufin de 1999 | D12: =C8 -> 40,750
A14: F.A = INPC Dic,02 | C14: 70.962 | D14: =C14/C15 -> 1.2024
A15: INPC Dic,99 | C15: 59.016
A17: Cufin Act. A Dic. 02 | D17: =D12*D14 -> 48,999
A19: F.A = INPC Abr,03 | C19: 72.020 | D19: =C19/C20 -> 1.0149
A20: INPC Dic,02 | C20: 70.962
A22: Cufin Act. A Abr.03 | D22: =D17*D19 -> 49,729
A26: Actualización de la Ufinre de 1999 | D26: =C9 -> 87,427
A28: F.A = INPC Dic,02 | C28: 70.962 | D28: =C28/C29 -> 1.2024
A29: INPC Dic,99 | C29: 59.016
A31: Cufinre Act. A Dic. 02 | D31: =D26*D28 -> 105,123
A33: F.A = INPC Abr,03 | C33: 72.02 | D33: =C33/C34 -> 1.0149
A34: INPC Dic,02 | C34: 70.962
A36: Cufinre Act. A Abr.03 | D36: =D31*D33 -> 106,691
A39: Determinación del ISR por Decreto de Dividendos
B41: Actualizado | C41: Histórico
A43: Saldo Cufinre | B43: =D36 -> 106,691 | C43: =D26 -> 87,427
A45: Factor | B45: 1.5385 | C45: 1.5385
A47: Base de ISR | B47: =B43*B45 -> 164,144 | C47: =C43*B45 -> 134,506
A49: Tasa de ISR | B49: 3% | C49: 3%
A51: ISR a Pagar | B51: =B47*B49 -> 4,924 | C51: =C47*B49 -> 4,035
A54: Nota: El ISR se paga a más tardar el día 17 del mes inmediato siguiente a aquel en que se pagarón dividendos
A56: Decreto de Dividendos | C56: 200,000
A57: (- ) Saldo Cufinre | C57: =-B43 -> -106,691
A58: (- ) Saldo Cufin | C58: =-D22 -> -49,729
A59: (=) Dividendos Netos | C59: =SUM(C56:C58) -> 43,580
A62: Factor | C62: 1.5152
A63: Base de ISR | C63: =C59*C62 -> 66,032
A64: Tasa de ISR | C64: 34%
A65: ISR a Pagar por Dividendos | C65: =C63*C64 -> 22,451
